Workbook

Sheet 承保
A1: 永定区凤城街道2024年脱贫人口产业帮扶保险承保公示清单
A2: 序号 | B2: 被保险人 | C2: 身份证号 | D2: 标的项目 | E2: 标的地点 | F2: 保险数量 | G2: 保险单位 | H2: 保险金额 | I2: 保险费 | J2: 其中
J3: 省级补贴 | K3: 市级补贴 | L3: 县级补贴
A4: 1 | B4: 郑春龙 | C4: 352623197305****13 | D4: 油菜 | E4: 凤城街道桃坑村 | F4: 2.00 | G4: 亩 | H4: =F4*M4 -> 10000.00 | I4: =H4*0.05 -> 500 | J4: =I4*0.54 -> 270 | K4: =I4*0.18 -> 90 | L4: =I4*0.28 -> 140 | M4: 5000.00
A5: 2 | B5: 郑春龙 | C5: 352623197305****13 | D5: 小白菜 | E5: 凤城街道桃坑村 | F5: 0.50 | G5: 亩 | H5: =F5*M5 -> 750.00 | I5: =H5*0.05 -> 37.5 | J5: =I5*0.54 -> 20.25 | K5: =I5*0.18 -> 6.75 | L5: =I5*0.28 -> 10.5 | M5: 1500.00
A6: 3 | B6: 郑春龙 | C6: 352623197305****13 | D6: 桃 | E6: 凤城街道桃坑村 | F6: 0.50 | G6: 亩 | H6: =F6*M6 -> 750.00 | I6: 37.5 | J6: 20.25 | K6: 6.75 | L6: 10.5 | M6: 1500.00
A7: 4 | B7: 郑春龙 | C7: 352623197305****13 | D7: 李 | E7: 凤城街道桃坑村 | F7: 0.50 | G7: 亩 | H7: =F7*M7 -> 1500.00 | I7: 75 | J7: 40.5 | K7: 13.5 | L7: 21 | M7: 3000.00
A8: 5 | B8: 卢桂姑 | C8: 352623195709****42 | D8: 鸡 | E8: 凤城街道南郊社区 | F8: 20 | G8: 其他 | H8: =F8*30 -> 600.00 | I8: 30 | J8: 16.2 | K8: 5.4 | L8: 8.4
A9: 6 | B9: 郑品笃 | C9: 352623196711****19 | D9: 鸡 | E9: 凤城街道东溪 | F9: 30 | G9: 其他 | H9: 900.00 | I9: 45 | J9: 24.3 | K9: 8.1 | L9: 12.6
A10: 7 | B10: 刘和鑫 | C10: 350822198503****11 | D10: 鸡 | E10: 西溪乡罗坑村 | F10: 50 | G10: 其他 | H10: 1500.00 | I10: 75 | J10: 40.5 | K10: 13.5 | L10: 21
A11: 8 | B11: 刘和鑫 | C11: 350822198503****11 | D11: 鸭 | E11: 西溪乡罗坑村 | F11: 16 | G11: 其他 | H11: 480.00 | I11: 24 | J11: 12.96 | K11: 4.32 | L11: 6.72
A12: 9 | B12: 刘和鑫 | C12: 350822198503****11 | D12: 狗 | E12: 西溪乡罗坑村 | F12: 20 | G12: 其他 | H12: =F12*400 -> 8000.00 | I12: 400 | J12: 216 | K12: 72 | L12: 112
A13: 10 | B13: 郑作仁 | C13: 352623194708****10 | D13: 兔 | E13: 凤城街道羊坑口 | F13: 260 | G13: 其他 | H13: 7800.00 | I13: 390 | J13: 210.6 | K13: 70.2 | L13: 109.2
A14: 11 | B14: 郑冬梅 | C14: 352623196501****20 | D14: 鸡 | E14: 凤城街道南郊社区 | F14: 52 | G14: 其他 | H14: 1560.00 | I14: 78 | J14: 42.12 | K14: 14.04 | L14: 21.84
A15: 12 | B15: 赖素英 | C15: 352623195709****65 | D15: 花生 | E15: 凤城镇书院社区龙寨 | F15: 0.5 | G15: 亩 | H15: 250.00 | I15: 10 | J15: 5.4 | K15: 1.8 | L15: 2.8
A16: 13 | B16: 郑焕涛 | C16: 352623197412****34 | D16: 马铃薯 | E16: 凤城镇书院社区龙寨 | F16: 0.5 | G16: 亩 | H16: 500.00 | I16: 25 | J16: 13.5 | K16: 4.5 | L16: 7
A17: 14 | B17: 赖素英 | C17: 352623195709****65 | D17: 上海青 | E17: 凤城镇书院社区龙寨 | F17: 0.5 | G17: 亩 | H17: 750.00 | I17: 37.5 | J17: 20.25 | K17: 6.75 | L17: 10.5
A18: 15 | B18: 郑万林 | C18: 350822198411****57 | D18: 芋头 | E18: 凤城镇书院社区龙寨 | F18: 2 | G18: 亩 | H18: 3200.00 | I18: 160 | J18: 86.4 | K18: 28.8 | L18: 44.8
A19: 16 | B19: 王仲春 | C19: 352623193608****12 | D19: 芋头 | E19: 凤城镇书院社区龙寨 | F19: 1 | G19: 亩 | H19: 1600.00 | I19: 80 | J19: 43.2 | K19: 14.4 | L19: 22.4
A20: 17 | B20: 郑万林 | C20: 350822198411****57 | D20: 鸭 | E20: 凤城镇山下路 | F20: 200 | G20: 其他 | H20: 6000.00 | I20: 300 | J20: 162 | K20: 54 | L20: 84
A21: 18 | B21: 郑焕涛 | C21: 352623197412****34 | D21: 鸡 | E21: 凤城镇山下路 | F21: 100 | G21: 其他 | H21: 3000.00 | I21: 150 | J21: 81 | K21: 27 | L21: 42
A22: 19 | B22: 王仲春 | C22: 352623193608****12 | D22: 鸡 | E22: 凤城镇山下路 | F22: 50 | G22: 其他 | H22: 1500.00 | I22: 75 | J22: 40.5 | K22: 13.5 | L22: 21
A23: 20 | B23: 张德仁 | C23: 352623196507****16 | D23: 鸡 | E23: 凤城书院新在九组 | F23: 100 | G23: 其他 | H23: 3000.00 | I23: 150 | J23: 81 | K23: 27 | L23: 42
A24: 21 | B24: 陈丽娜 | C24: 352623196803****47 | D24: 鸡 | E24: 凤城镇山下路 | F24: 100 | G24: 其他 | H24: 3000.00 | I24: 150 | J24: 81 | K24: 27 | L24: 42
A25: 22 | B25: 张喜东 | C25: 352623197707****1X | D25: 鸡 | E25: 凤城镇山下路 | F25: 100 | G25: 其他 | H25: 3000.00 | I25: 150 | J25: 81 | K25: 27 | L25: 42
A26: 23 | B26: 陈启文 | C26: 352623197510****63 | D26: 鸡 | E26: 凤城镇山下路 | F26: 160 | G26: 其他 | H26: 4800.00 | I26: 240 | J26: 129.6 | K26: 43.2 | L26: 67.2
A27: 24 | B27: 邹庆娣 | C27: 352623194406****25 | D27: 鸡 | E27: 凤城镇大园二区路 | F27: 120.00 | G27: 其他 | H27: 3600.00 | I27: 180 | J27: 97.2 | K27: 32.4 | L27: 50.4
A28: 25 | B28: 邹庆娣 | C28: 352623194406****25 | D28: 鸭 | E28: 凤城镇大园二区路 | F28: 30.00 | G28: 其他 | H28: 900.00 | I28: 45 | J28: 24.3 | K28: 8.1 | L28: 12.6
A29: 26 | B29: 俞晓华 | C29: 352623196909****20 | D29: 鸡 | E29: 凤城镇大园二区路 | F29: 390.00 | G29: 其他 | H29: 11700.00 | I29: 585 | J29: 315.9 | K29: 105.3 | L29: 163.8
A30: 27 | B30: 俞晓华 | C30: 352623196909****20 | D30: 鸭 | E30: 凤城镇大园二区路 | F30: 150.00 | G30: 其他 | H30: 4500.00 | I30: 225 | J30: 121.5 | K30: 40.5 | L30: 63
A31: 28 | B31: 刘文生 | C31: 352623195108****16 | D31: 鸡 | E31: 凤城镇大园二区路 | F31: 1680.00 | G31: 其他 | H31: 50400.00 | I31: 2520 | J31: 1360.8 | K31: 453.6 | L31: 705.6
A32: 29 | B32: 刘文生 | C32: 352623195108****16 | D32: 鸭 | E32: 凤城镇大园二区路 | F32: 300.00 | G32: 其他 | H32: 9000.00 | I32: 450 | J32: 243 | K32: 81 | L32: 126
A33: 30 | B33: 许秀英 | C33: 352623194103****23 | D33: 鸡 | E33: 凤城镇大园二区路 | F33: 570.00 | G33: 其他 | H33: 17100.00 | I33: 855 | J33: 461.7 | K33: 153.9 | L33: 239.4
A34: 31 | B34: 许秀英 | C34: 352623194103****23 | D34: 鸭 | E34: 凤城镇大园二区路 | F34: 60.00 | G34: 其他 | H34: 1800.00 | I34: 90 | J34: 48.6 | K34: 16.2 | L34: 25.2
A35: 32 | B35: 俞祖文 | C35: 352623195701****15 | D35: 鸡 | E35: 凤城镇大园一区路 | F35: 420.00 | G35: 其他 | H35: 12600.00 | I35: 630 | J35: 340.2 | K35: 113.4 | L35: 176.4
A36: 33 | B36: 沈思锋 | C36: 352623197111****19 | D36: 鸡 | E36: 凤城镇大园一区路 | F36: 840.00 | G36: 其他 | H36: 25200.00 | I36: 1260 | J36: 680.4 | K36: 226.8 | L36: 352.8
A37: 34 | B37: 童定福 | C37: 352623197006****17 | D37: 鸡 | E37: 凤城街道长化社区 | F37: 50 | G37: 其他 | H37: 1500.00 | I37: 75 | J37: 40.5 | K37: 13.5 | L37: 21
A38: 35 | B38: 童定福 | C38: 352623197006****17 | D38: 鸭 | E38: 凤城街道长化社区 | F38: 20 | G38: 其他 | H38: 600.00 | I38: 30 | J38: 16.2 | K38: 5.4 | L38: 8.4
A39: 36 | B39: 王小梅 | C39: 352623196512****29 | D39: 鸡 | E39: 凤城街道长化社区 | F39: 20 | G39: 其他 | H39: 600.00 | I39: 30 | J39: 16.2 | K39: 5.4 | L39: 8.4
A40: 37 | B40: 任春燕 | C40: 511302197910****42 | D40: 鸡 | E40: 凤城街道长化社区 | F40: 40 | G40: 其他 | H40: 1200.00 | I40: 60 | J40: 32.4 | K40: 10.8 | L40: 16.8
A41: 38 | B41: 任春燕 | C41: 511302197910****42 | D41: 鸭 | E41: 凤城街道长化社区 | F41: 20 | G41: 其他 | H41: 600.00 | I41: 30 | J41: 16.2 | K41: 5.4 | L41: 8.4
A42: 39 | B42: 卢月梅 | C42: 352623197006****46 | D42: 鸡 | E42: 凤城街道长化社区 | F42: 20 | G42: 其他 | H42: 600.00 | I42: 30 | J42: 16.2 | K42: 5.4 | L42: 8.4
A43: 40 | B43: 卢月梅 | C43: 352623197006****46 | D43: 鸭 | E43: 凤城街道长化社区 | F43: 5 | G43: 其他 | H43: 150.00 | I43: 7.5 | J43: 4.05 | K43: 1.35 | L43: 2.1
A44: 41 | B44: 童长雄 | C44: 352623196505****12 | D44: 鸡 | E44: 凤城街道长化社区 | F44: 30 | G44: 其他 | H44: 900.00 | I44: 45 | J44: 24.3 | K44: 8.1 | L44: 12.6
A45: 42 | B45: 童长栋 | C45: 352623197408****36 | D45: 鸡 | E45: 凤城街道长化社区 | F45: 40 | G45: 其他 | H45: 1200.00 | I45: 60 | J45: 32.4 | K45: 10.8 | L45: 16.8
A46: 43 | B46: 童长栋 | C46: 352623197408****36 | D46: 鸭 | E46: 凤城街道长化社区 | F46: 30 | G46: 其他 | H46: 900.00 | I46: 45 | J46: 24.3 | K46: 8.1 | L46: 12.6
A47: 44 | B47: 童盛阳 | C47: 350822198208****12 | D47: 鸡 | E47: 凤城街道长化社区 | F47: 50 | G47: 其他 | H47: 1500.00 | I47: 75 | J47: 40.5 | K47: 13.5 | L47: 21
A48: 45 | B48: 童长青 | C48: 352623196709****16 | D48: 鸡 | E48: 凤城街道长化社区 | F48: 60 | G48: 其他 | H48: 1800.00 | I48: 90 | J48: 48.6 | K48: 16.2 | L48: 25.2
A49: 46 | B49: 童长青 | C49: 352623196709****16 | D49: 鸭 | E49: 凤城街道长化社区 | F49: 20 | G49: 其他 | H49: 600.00 | I49: 30 | J49: 16.2 | K49: 5.4 | L49: 8.4
A50: 47 | B50: 俞福莲 | C50: 352623196911****67 | D50: 鸡 | E50: 凤城街道先锋社区 | F50: 53 | G50: 其他 | H50: 1590.00 | I50: 79.5 | J50: 42.93 | K50: 14.31 | L50: 22.26
A51: 48 | B51: 俞福莲 | C51: 352623196911****67 | D51: 鸭 | E51: 凤城街道先锋社区 | F51: 29 | G51: 其他 | H51: 870.00 | I51: 43.5 | J51: 23.49 | K51: 7.83 | L51: 12.18
A52: 49 | B52: 吴庆妃 | C52: 350822198204****27 | D52: 柚子 | E52: 凤城街道龙角社区 | F52: 1.5 | G52: 其他 | H52: =F52*4000 -> 6000.00 | I52: 300 | J52: 162 | K52: 54 | L52: 84
A53: 如有疑义请于七日内(自 2024 年6月13日至 2024 年6月 18日止)向人保财险龙岩市分公司永定支公司进行反馈
A54: 联系地址：05975559589 永定区凤城镇金凤路1号
A55: 监督电话：05975559589

Sheet Sheet2
